fUST/lending_fUST_20250812
["ID","MTS","AMOUNT","RATE_DAILY","PERIOD"]
[378698086,1754961053678,-458.5564,0.00019789,2]
[378698087,1754961053690,-458.5564,0.00019789,2]
[378698088,1754961053701,-495.3,0.00019789,2]
[378698089,1754961053710,-460.0,0.00019789,2]
[378698090,1754961053720,-460.0,0.00019789,2]
[378698091,1754961053729,-851.43,0.00019789,2]
[378698092,1754961053739,-460.0,0.00019789,2]
[378698093,1754961053748,-3987.56,0.00019789,2]
[378698094,1754961053761,-460.0,0.00019789,2]
[378698095,1754961053771,-527.32,0.00019789,2]
[378698096,1754961053780,-980.86,0.00019789,2]
[378698097,1754961053791,-460.0,0.00019789,2]
[378698098,1754961053802,-559.31,0.00019789,2]
[378698099,1754961053812,-1359.37,0.00019789,2]
[378698100,1754961053821,-994.72,0.00019789,2]
[378698101,1754961053831,-460.0,0.00019789,2]
[378698102,1754961053840,-2156.76,0.00019789,2]
[378698103,1754961053850,-927.82,0.00019789,2]
[378698104,1754961053859,-1211.11,0.00019789,2]
[378698105,1754961053869,-151.0,0.00019789,2]
[378698106,1754961053879,-3782.63,0.00019789,2]
[378698107,1754961053888,-910.93,0.00019789,2]
[378698108,1754961053898,-716.34,0.00019789,2]
[378698109,1754961053908,-1054.97,0.00019789,2]
[378698110,1754961053918,-609.68,0.00019789,2]
[378698111,1754961053928,-1009.28,0.00019789,2]
[378698112,1754961053938,-460.0,0.00019789,2]
[378698113,1754961053947,-3050.74,0.00019789,2]
[378698114,1754961053958,-460.0,0.00019789,2]
[378698115,1754961053968,-460.0,0.00019789,2]
[378698116,1754961053978,-582.18856313,0.00019789,2]
[378698117,1754961053987,-1533.17,0.00019789,2]
[378698118,1754961053997,-2964.63,0.00019789,2]
[378698119,1754961054009,-847.73,0.00019789,2]
[378698120,1754961054019,-466.69,0.00019789,2]
[378698121,1754961054029,-1291.63,0.00019789,2]
[378698122,1754961054039,-228.849815,0.00019789,2]
[378698123,1754961054048,-228.849815,0.00019789,2]
[378698124,1754961054057,-580.56,0.0001979,2]
[378698125,1754961054066,-460.0,0.0001979,2]
[378698126,1754961054076,-460.0,0.0001979,2]
[378698127,1754961054085,-397.95283419,0.0001979,2]
[378698128,1754961054094,-460.0,0.0001979,2]
[378698129,1754961054104,-460.0,0.0001979,2]
[378698130,1754961054113,-1019.8,0.0001979,2]
[378698131,1754961054123,-718.56,0.0001979,2]
[378698132,1754961054133,-326.4540246,0.0001979,2]
[378698133,1754961054142,-657.97,0.0001979,2]
[378698134,1754961054151,-460.0,0.0001979,2]
[378698135,1754961054161,-460.0,0.0001979,2]
[378698136,1754961054170,-460.0,0.0001979,2]
[378698137,1754961054179,-460.0,0.0001979,2]
[378698138,1754961054188,-460.0,0.0001979,2]
[378698139,1754961054197,-460.0,0.0001979,2]
[378698140,1754961054206,-460.0,0.0001979,2]
[378698141,1754961054216,-805.43,0.0001979,2]
[378698142,1754961054225,-151.0,0.0001979,2]
[378698143,1754961054234,-653.37,0.0001979,2]
[378698144,1754961054243,-460.0,0.0001979,2]
[378698145,1754961054252,-460.0,0.0001979,2]
[378698146,1754961054262,-460.0,0.0001979,2]
[378698147,1754961054272,-460.0,0.0001979,2]
[378698148,1754961054281,-460.0,0.0001979,2]
[378698149,1754961054290,-397.770434,0.0001979,2]
[378698150,1754961054299,-460.0,0.0001979,2]
[378698151,1754961054308,-460.0,0.0001979,2]
[378698152,1754961054318,-460.0,0.0001979,2]
[378698153,1754961054327,-460.0,0.0001979,2]
[378698154,1754961054336,-460.0,0.0001979,2]
[378698155,1754961054346,-460.0,0.0001979,2]
[378698156,1754961054355,-1068.57,0.0001979,2]
[378698157,1754961054364,-460.0,0.0001979,2]
[378698158,1754961054373,-603.87,0.0001979,2]
[378698159,1754961054383,-462.9,0.0001979,2]
[378698160,1754961054392,-260.07782866,0.0001979,2]
[378698161,1754961054402,-460.0,0.0001979,2]
[378698162,1754961054412,-1132.92,0.0001979,2]
[378698163,1754961054421,-460.0,0.0001979,2]
[378698164,1754961054431,-674.21,0.0001979,2]
[378698165,1754961054445,-460.0,0.0001979,2]
[378698166,1754961054454,-1807.04,0.0001979,2]
[378698167,1754961054463,-460.0,0.0001979,2]
[378698168,1754961054472,-460.0,0.0001979,2]
[378698169,1754961054480,-460.0,0.0001979,2]
[378698170,1754961054490,-479.85849401,0.0001979,2]
[378698171,1754961054500,-460.0,0.0001979,2]
[378698172,1754961054509,-580.65,0.0001979,2]
[378698173,1754961054518,-717.43,0.0001979,2]
[378698174,1754961054537,-157.810565,0.0001979,2]
[378698175,1754961054548,-586.91,0.0001979,2]
[378698176,1754961054558,-322.422727,0.0001979,2]
[378698177,1754961054572,-552.12,0.0001979,2]
[378698178,1754961054585,-322.422727,0.0001979,2]
[378698179,1754961054595,-1523.52,0.0001979,2]
[378698180,1754961054606,-460.0,0.0001979,2]
[378698181,1754961054619,-175.086479,0.0001979,2]
[378698182,1754961054629,-460.0,0.0001979,2]
[378698183,1754961054639,-175.086479,0.0001979,2]
[378698184,1754961054650,-460.0,0.0001979,2]
[378698185,1754961054660,-460.0,0.0001979,2]
[378698186,1754961054669,-738.34,0.0001979,2]
[378698187,1754961054679,-460.0,0.0001979,2]
[378698188,1754961054690,-460.0,0.0001979,2]
[378698189,1754961054700,-460.0,0.0001979,2]
[378698190,1754961054710,-2454.84,0.0001979,2]
[378698191,1754961054721,-491.09,0.0001979,2]
[378698192,1754961054731,-534.16,0.0001979,2]
[378698193,1754961054741,-1119.95,0.0001979,2]
[378698194,1754961054752,-460.0,0.0001979,2]
[378698195,1754961054762,-536.78,0.0001979,2]
[378698196,1754961054772,-460.0,0.0001979,2]
[378698197,1754961054782,-460.0,0.0001979,2]
[378698198,1754961054793,-483.05478056,0.0001979,2]
[378698199,1754961054804,-1529.48,0.0001979,2]
[378698200,1754961054814,-489.87,0.0001979,2]
[378698201,1754961054826,-1177.28,0.0001979,2]
[378698202,1754961054836,-460.0,0.0001979,2]
[378698203,1754961054846,-460.0,0.0001979,2]
[378698204,1754961054856,-460.0,0.0001979,2]
[378698205,1754961054866,-715.66,0.0001979,2]
[378698206,1754961054878,-187.028429,0.0001979,2]
[378698207,1754961054888,-416.68215033,0.0001979,2]
[378698208,1754961054899,-187.028429,0.0001979,2]
[378698209,1754961054910,-460.0,0.0001979,2]
[378698210,1754961054920,-460.0,0.0001979,2]
[378698211,1754961054930,-460.0,0.0001979,2]
[378698212,1754961054940,-460.0,0.0001979,2]
[378698213,1754961054950,-151.0,0.0001979,2]
[378698214,1754961054960,-1701.96,0.0001979,2]
[378698215,1754961054970,-1754.81,0.0001979,2]
[378698216,1754961054980,-20252.38884843,0.0001979,2]
[378698217,1754961054990,-262.0,0.00019811,2]
[378698218,1754961055000,-201.6,0.00019837,2]
[378698219,1754961055011,-579.933671,0.00019863,2]
[378698220,1754961055022,-262.0,0.00019865,2]
[378698221,1754961055032,-500.0,0.00019873,2]
[378698222,1754961055042,-600.0,0.00019873,2]
[378698223,1754961055052,-158.04855829,0.00019873,2]
[378698224,1754961055062,-160.46559195,0.00019873,2]
[378698225,1754961055072,-158.46341349,0.00019873,2]
[378698226,1754961055083,-500.0,0.00019873,2]
[378698227,1754961055093,-261.45627301,0.00019873,2]
[378698228,1754961055103,-260.55026,0.00019873,2]
[378698229,1754961055116,-500.0,0.00019873,2]
[378698230,1754961055130,-500.0,0.00019873,2]
[378698231,1754961055139,-158.46471794,0.00019873,2]
[378698232,1754961055149,-500.0,0.00019873,2]
[378698233,1754961055159,-500.0,0.00019873,2]
[378698234,1754961055169,-3842.46,0.00019889,2]
[378698235,1754961055178,-201.64324224,0.00019889,2]
[378698236,1754961055187,-350.69320462,0.00019889,2]
[378698237,1754961055197,-151.0,0.0001989,2]
[378698238,1754961055207,-151.0,0.0001989,2]
[378698239,1754961055216,-151.0,0.0001989,2]
[378698240,1754961055226,-151.0,0.0001989,2]
[378698241,1754961055235,-151.337873,0.0001989,2]
[378698242,1754961055245,-355.11154633,0.0001989,2]
[378698243,1754961055254,-494.71,0.0001989,2]
[378698244,1754961055263,-1128.94,0.0001989,2]
[378698245,1754961055273,-460.0,0.0001989,2]
[378698246,1754961055282,-460.0,0.0001989,2]
[378698247,1754961055292,-151.0,0.0001989,2]
[378698248,1754961055301,-460.0,0.0001989,2]
[378698249,1754961055311,-462.56,0.0001989,2]
[378698250,1754961055320,-509.98293276,0.0001989,2]
[378698251,1754961055329,-460.0,0.0001989,2]
[378698252,1754961055339,-151.0,0.0001989,2]
[378698253,1754961055348,-460.0,0.0001989,2]
[378698254,1754961055358,-460.0,0.0001989,2]
[378698255,1754961055367,-460.0,0.0001989,2]
[378698256,1754961055376,-651.81,0.0001989,2]
[378698257,1754961055386,-460.0,0.0001989,2]
[378698258,1754961055395,-506.94,0.0001989,2]
[378698259,1754961055405,-460.0,0.0001989,2]
[378698260,1754961055415,-944.89,0.0001989,2]
[378698261,1754961055424,-475.859386,0.0001989,2]
[378698262,1754961055433,-460.0,0.0001989,2]
[378698263,1754961055443,-475.859386,0.0001989,2]
[378698264,1754961055453,-460.0,0.0001989,2]
[378698265,1754961055462,-724.66,0.0001989,2]
[378698266,1754961055472,-460.0,0.0001989,2]
[378698267,1754961055481,-688.03,0.0001989,2]
[378698268,1754961055491,-466.52,0.0001989,2]
[378698269,1754961055501,-917.47,0.0001989,2]
[378698270,1754961055512,-3585.767819,0.0001989,2]
[378698271,1754961055522,-460.0,0.0001989,2]
[378698272,1754961055531,-460.0,0.0001989,2]
[378698273,1754961055540,-1835.2,0.0001989,2]
[378698274,1754961055550,-460.0,0.0001989,2]
[378698275,1754961055560,-460.0,0.0001989,2]
[378698276,1754961055569,-460.0,0.0001989,2]
[378698277,1754961055579,-3842.46,0.0001989,2]
[378698278,1754961055589,-151.858018,0.0001989,2]
[378698279,1754961055598,-460.0,0.0001989,2]
[378698280,1754961055612,-649.7,0.0001989,2]
[378698281,1754961055622,-277.04727961,0.0001989,2]
[378698282,1754961055632,-590.9,0.0001989,2]
[378698283,1754961055642,-12815.59,0.0001989,2]
[378698284,1754961055651,-525.01640546,0.00019891,2]
[378698285,1754961055661,-460.0,0.00019891,2]
[378698286,1754961055670,-460.0,0.00019891,2]
[378698287,1754961055681,-460.0,0.00019891,2]
[378698288,1754961055690,-460.0,0.00019891,2]
[378698289,1754961055700,-536.82,0.00019891,2]
[378698290,1754961055709,-526.3,0.00019891,2]
[378698291,1754961055718,-460.0,0.00019891,2]
[378698292,1754961055728,-460.0,0.00019891,2]
[378698293,1754961055737,-460.0,0.00019891,2]
[378698294,1754961055746,-460.0,0.00019891,2]
[378698295,1754961055756,-460.0,0.00019891,2]
[378698296,1754961055765,-183.63284527,0.00019891,2]
[378698297,1754961055775,-968.81,0.00019891,2]
[378698298,1754961055960,-460.0,0.00019891,2]
[378698299,1754961055970,-460.0,0.00019891,2]
[378698300,1754961055979,-729.75,0.00019891,2]
[378698301,1754961055989,-460.0,0.00019891,2]
[378698302,1754961055998,-460.0,0.00019891,2]
[378698303,1754961056008,-254.907301,0.00019891,2]
[378698304,1754961056018,-460.0,0.00019891,2]
[378698305,1754961056027,-460.0,0.00019891,2]
[378698306,1754961056037,-460.0,0.00019891,2]
[378698307,1754961056047,-460.0,0.00019891,2]
[378698308,1754961056056,-460.0,0.00019891,2]
[378698309,1754961056067,-460.0,0.00019891,2]
[378698310,1754961056076,-460.0,0.00019891,2]
[378698311,1754961056087,-460.0,0.00019891,2]
[378698312,1754961056097,-250.823844,0.00019891,2]
[378698313,1754961056108,-215.727577,0.00019891,2]
[378698314,1754961056117,-215.727577,0.00019891,2]
[378698315,1754961056128,-3842.46,0.00019891,2]
[378698316,1754961056138,-3842.46,0.00019891,2]
[378698317,1754961056148,-458.5564,0.00019891,2]
[378698318,1754961056158,-458.5564,0.00019891,2]
[378698319,1754961056168,-530.0,0.00019891,2]
[378698320,1754961056178,-2457.17,0.00019891,2]
[378698321,1754961056190,-2157.46,0.00019891,2]
[378698322,1754961056201,-322.422727,0.00019891,2]
[378698323,1754961056211,-322.422727,0.00019891,2]
[378698324,1754961056220,-1500.23,0.00019891,2]
[378698325,1754961056231,-175.086479,0.00019891,2]
[378698326,1754961056241,-175.086479,0.00019891,2]
[378698327,1754961056250,-430.87988343,0.00019891,2]
[378698328,1754961056260,-551.27,0.00019891,2]
[378698329,1754961056269,-151.0,0.00019891,2]
[378698330,1754961056278,-3814.9,0.00019891,2]
[378698331,1754961056288,-187.028429,0.00019891,2]
[378698332,1754961056298,-187.028429,0.00019891,2]
[378698333,1754961056308,-460.0,0.00019891,2]
[378698334,1754961056320,-151.0,0.00019891,2]
[378698335,1754961056330,-228.849815,0.00019891,2]
[378698336,1754961056340,-228.849815,0.00019891,2]
[378698337,1754961056349,-151.0,0.00019892,2]
[378698338,1754961056362,-151.0,0.00019892,2]
[378698339,1754961056373,-500.0,0.00019892,2]
[378698340,1754961056384,-151.0,0.00019892,2]
[378698341,1754961056394,-151.0,0.00019892,2]
[378698342,1754961056403,-500.0,0.00019892,2]
[378698343,1754961056413,-203.32158467,0.00019892,2]
[378698344,1754961056422,-151.0,0.00019892,2]
[378698345,1754961056433,-152.664452,0.00019892,2]
[378698346,1754961056442,-151.0,0.00019892,2]
[378698347,1754961056451,-151.0,0.00019892,2]
[378698348,1754961056460,-151.0,0.00019892,2]
[378698349,1754961056471,-151.0,0.00019892,2]
[378698350,1754961056481,-151.0,0.00019892,2]
[378698351,1754961056490,-500.0,0.00019892,2]
[378698352,1754961056500,-397.770434,0.00019892,2]
[378698353,1754961056512,-151.0,0.00019892,2]
[378698354,1754961056522,-151.0,0.00019892,2]
[378698355,1754961056532,-151.0,0.00019892,2]
[378698356,1754961056542,-151.0,0.00019892,2]
[378698357,1754961056551,-154.36370006,0.00019892,2]
[378698358,1754961056563,-151.0,0.00019892,2]
[378698359,1754961056573,-151.0,0.00019892,2]
[378698360,1754961056583,-154.18091276,0.00019892,2]
[378698361,1754961056593,-151.0,0.00019892,2]
[378698362,1754961056603,-3444.29,0.00019892,2]
[378698363,1754961056617,-501.0,0.00019892,2]
[378698364,1754961056627,-460.0,0.00019892,2]
[378698365,1754961056637,-151.0,0.00019892,2]
[378698366,1754961056646,-151.0,0.00019892,2]
[378698367,1754961056656,-151.0,0.00019892,2]
[378698368,1754961056666,-151.0,0.00019892,2]
[378698369,1754961056675,-151.0,0.00019892,2]
[378698370,1754961056686,-500.0,0.00019892,2]
[378698371,1754961056696,-214.26928071,0.00019892,2]
[378698372,1754961056705,-500.0,0.00019892,2]
[378698373,1754961056714,-151.0,0.00019892,2]
[378698374,1754961056723,-275.92862851,0.00019892,2]
[378698375,1754961056733,-151.0,0.00019893,2]
[378698376,1754961056742,-230.469571,0.00019893,2]
[378698377,1754961056752,-230.469571,0.00019893,2]
[378698378,1754961056762,-3842.46,0.00019893,2]
[378698379,1754961056772,-3842.46,0.00019893,2]
[378698380,1754961056782,-3842.46,0.00019893,2]
[378698381,1754961056791,-151.0,0.00019894,2]
[378698382,1754961056800,-151.0,0.00019894,2]
[378698383,1754961056810,-151.0,0.00019894,2]
[378698384,1754961056819,-475.859386,0.00019894,2]
[378698385,1754961056828,-475.859386,0.00019894,2]
[378698386,1754961056838,-962.988124,0.00019894,2]
[378698387,1754961056848,-3842.46,0.00019894,2]
[378698388,1754961056857,-151.0,0.00019896,2]
[378698389,1754961056866,-151.566,0.00019896,2]
[378698390,1754961056876,-3842.46,0.00019899,2]
[378698391,1754961056885,-3842.46,0.00019899,2]
[378698392,1754961056895,-151.0,0.000199,2]
[378698393,1754961056903,-151.0,0.000199,2]
[378698394,1754961056913,-151.0,0.000199,2]
[378698395,1754961056922,-151.0,0.000199,2]
[378698396,1754961056931,-151.0,0.000199,2]
[378698397,1754961056941,-151.0,0.000199,2]
[378698398,1754961056950,-151.0,0.000199,2]
[378698399,1754961056960,-3585.767819,0.000199,2]
[378698400,1754961056970,-32960.88022966,0.000199,2]
[378698401,1754961056980,-1000.0,0.00019921,2]
[378698402,1754961056990,-1002.50131365,0.00019921,2]
[378698403,1754961056999,-664.02290298,0.00019921,2]
[378698404,1754961057009,-1000.0,0.00019921,2]
[378698405,1754961057019,-453.84394465,0.00019921,2]
[378698406,1754961057030,-612.98959825,0.00019921,2]
[378698407,1754961057039,-1000.0,0.00019921,2]
[378698408,1754961057049,-1000.0,0.00019921,2]
[378698409,1754961057058,-1000.0,0.00019921,2]
[378698410,1754961057068,-1000.0,0.00019921,2]
[378698411,1754961057078,-1000.0,0.00019921,2]
[378698412,1754961057087,-1000.0,0.00019921,2]
[378698413,1754961057098,-1000.0,0.00019921,2]
[378698414,1754961057109,-833.83993015,0.00019921,2]
[378698415,1754961057118,-500.0,0.00019921,2]
[378698416,1754961057128,-1000.0,0.00019921,2]
[378698417,1754961057137,-151.0,0.00019921,2]
[378698418,1754961057146,-500.0,0.00019973,2]
[378698419,1754961057156,-271.52804922,0.00019973,2]
[378698420,1754961057167,-167.03986381,0.00019973,2]
[378698421,1754961057177,-446.7853766,0.00019973,2]
[378698422,1754961057187,-1787.14150639,0.00019973,2]
[378698423,1754961057196,-262.0,0.00019977,2]
[378698424,1754961057206,-201.6,0.00019978,2]
[378698425,1754961057216,-3842.46,0.00019997,2]
[378698426,1754961057225,-3842.46,0.00019997,2]
[378698427,1754961057235,-3842.46,0.00019997,2]
[378698428,1754961057244,-3842.46,0.00019997,2]
[378698429,1754961057254,-3842.56238769,0.00019997,2]
[378698430,1754961057264,-7005.15695088,0.0002,2]
[378698431,1754961057274,-14402.1978769,0.0002,2]
[378698432,1754961057284,-56069.16055647,0.0002,2]
[378698433,1754961057293,-364.11032064,0.0002,2]
[378698434,1754961057303,-27508.9507498,0.0002,2]
[378698435,1754961057313,-7237.17604782,0.0002,10]
[378698436,1754961057322,-17001.48056737,0.0002,2]
[378698437,1754961057333,-31509.20856891,0.0002,2]
[378698438,1754961057342,-1001.16399168,0.0002,2]
[378698439,1754961057352,-151.0,0.0002,2]
[378698440,1754961057361,-151.0,0.0002,2]
[378698441,1754961057370,-151.0,0.0002,2]
[378698442,1754961057379,-151.0,0.0002,2]
[378698443,1754961057388,-151.0,0.0002,2]
[378698444,1754961057397,-151.0,0.0002,2]
[378698445,1754961057407,-151.0,0.0002,2]
[378698446,1754961057416,-230.469571,0.0002,2]
[378698447,1754961057426,-151.0,0.0002,2]
[378698448,1754961057435,-230.469571,0.0002,2]
[378698449,1754961057444,-151.0,0.0002,2]
[378698450,1754961057453,-151.0,0.0002,2]
[378698451,1754961057462,-151.0,0.0002,2]
[378698452,1754961057470,-151.0,0.0002,2]
[378698453,1754961057479,-475.859386,0.0002,2]
[378698454,1754961057488,-475.859386,0.0002,2]
[378698455,1754961057497,-3585.767819,0.0002,2]
[378698456,1754961057506,-3585.767819,0.0002,2]
[378698457,1754961057515,-397.770434,0.0002,2]
[378698458,1754961057525,-962.988124,0.0002,2]
[378698459,1754961057535,-150.0,0.0002,2]
[378698460,1754961057544,-215.727577,0.0002,2]
[378698461,1754961057554,-215.727577,0.0002,2]
[378698462,1754961057563,-458.5564,0.0002,2]
[378698463,1754961057573,-458.5564,0.0002,2]
[378698464,1754961057582,-322.422727,0.0002,2]
[378698465,1754961057591,-322.422727,0.0002,2]
[378698466,1754961057600,-175.086479,0.0002,2]
[378698467,1754961057610,-175.086479,0.0002,2]
[378698468,1754961057621,-300.0,0.0002,2]
[378698469,1754961057630,-151.0,0.0002,2]
[378698470,1754961057640,-187.028429,0.0002,2]
[378698471,1754961057649,-187.028429,0.0002,2]
[378698472,1754961057659,-4000.0,0.0002,4]
[378698473,1754961057669,-151.0,0.0002,2]
[378698474,1754961057678,-228.849815,0.0002,2]
[378698475,1754961057690,-228.849815,0.0002,2]
[378698476,1754961057700,-150.0,0.00020015,2]
[378698477,1754961057710,-150.0,0.00020015,2]
[378698478,1754961057719,-150.0,0.00020015,2]
[378698479,1754961057728,-150.0,0.00020015,2]
[378698480,1754961057738,-150.0,0.00020015,2]
[378698481,1754961057747,-245.0,0.00020015,2]
[378698482,1754961057756,-2151.0,0.00020015,2]
[378698483,1754961057766,-971.0,0.00020015,2]
[378698484,1754961057776,-636.0,0.00020015,2]
[378698485,1754961057785,-160.0,0.00020033,2]
[378698486,1754961057794,-6000.0,0.00020042,2]
[378698487,1754961057804,-5000.0,0.00020042,2]
[378698488,1754961057813,-168.0,0.00020044,2]
[378698489,1754961057822,-460.0,0.0002006,2]
[378698490,1754961057832,-660.22,0.0002006,2]
[378698491,1754961057841,-460.0,0.00020061,2]
[378698492,1754961057850,-548.21,0.00020061,2]
[378698493,1754961057860,-476.95,0.00020061,2]
[378698494,1754961057869,-2289.39,0.00020061,2]
[378698495,1754961057879,-564.29,0.00020061,2]
[378698496,1754961057888,-1384.4,0.00020061,2]
[378698497,1754961057899,-460.0,0.00020061,2]
[378698498,1754961057908,-4496.04,0.00020061,2]
[378698499,1754961057918,-880.94,0.00020062,2]
[378698500,1754961057927,-460.0,0.00020062,2]
[378698501,1754961057938,-3611.52,0.00020062,2]
[378698502,1754961057947,-1382.19,0.00020062,2]
[378698503,1754961057957,-460.0,0.00020062,2]
[378698504,1754961057966,-1070.11,0.00020062,2]
[378698505,1754961057976,-2800.52,0.00020062,2]
[378698506,1754961057985,-1337.21,0.00020062,2]
[378698507,1754961057995,-460.0,0.00020062,2]
[378698508,1754961058005,-460.0,0.00020062,2]
[378698509,1754961058015,-460.0,0.00020062,2]
[378698510,1754961058025,-520.46,0.00020062,2]
[378698511,1754961058035,-1848.44,0.00020062,2]
[378698512,1754961058046,-2122.24,0.00020062,2]
[378698513,1754961058057,-460.0,0.00020062,2]
[378698514,1754961058067,-460.0,0.00020062,2]
[378698515,1754961058077,-557.97,0.00020062,2]
[378698516,1754961058086,-460.0,0.00020062,2]
[378698517,1754961058095,-460.0,0.00020063,2]
[378698518,1754961058105,-460.0,0.00020063,2]
[378698519,1754961058116,-470.77,0.00020063,2]
[378698520,1754961058126,-1142.02,0.00020063,2]
[378698521,1754961058135,-933.19,0.00020063,2]
[378698522,1754961058145,-508.47,0.00020063,2]
[378698523,1754961058154,-460.0,0.00020063,2]
[378698524,1754961058164,-644.06,0.00020063,2]
[378698525,1754961058173,-1041.35,0.00020063,2]
[378698526,1754961058182,-460.0,0.00020063,2]
[378698527,1754961058191,-5662.12,0.00020063,2]
[378698528,1754961058200,-460.0,0.00020063,2]
[378698529,1754961058210,-460.0,0.00020063,2]
[378698530,1754961058219,-467.83,0.00020063,2]
[378698531,1754961058228,-1017.4,0.00020063,2]
[378698532,1754961058238,-460.0,0.00020063,2]
[378698533,1754961058248,-460.0,0.00020063,2]
[378698534,1754961058259,-250.43698692,0.00020063,2]
[378698535,1754961058268,-495.3,0.00020063,2]
[378698536,1754961058281,-281.41,0.00020063,2]
[378698537,1754961058290,-460.0,0.00020063,2]
[378698538,1754961058299,-851.43,0.00020063,2]
[378698539,1754961058308,-460.0,0.00020063,2]
[378698540,1754961058318,-3987.56,0.00020063,2]
[378698541,1754961058327,-460.0,0.00020063,2]
[378698542,1754961058336,-527.32,0.00020063,2]
[378698543,1754961058346,-980.86,0.00020063,2]
[378698544,1754961058355,-460.0,0.00020063,2]
[378698545,1754961058406,-559.31,0.00020063,2]
[378698546,1754961058416,-1359.37,0.00020063,2]
[378698547,1754961058425,-994.72,0.00020063,2]
[378698548,1754961058435,-2156.76,0.00020063,2]
[378698549,1754961058444,-927.82,0.00020063,2]
[378698550,1754961058453,-1211.11,0.00020063,2]
[378698551,1754961058462,-3782.63,0.00020063,2]
[378698552,1754961058472,-910.93,0.00020063,2]
[378698553,1754961058480,-716.34,0.00020063,2]
[378698554,1754961058490,-1054.97,0.00020063,2]
[378698555,1754961058499,-609.68,0.00020063,2]
[378698556,1754961058509,-1009.28,0.00020063,2]
[378698557,1754961058518,-3050.74,0.00020063,2]
[378698558,1754961058528,-460.0,0.00020063,2]
[378698559,1754961058538,-460.0,0.00020063,2]
[378698560,1754961058547,-187.028429,0.00020063,2]
[378698561,1754961058556,-187.028429,0.00020063,2]
[378698562,1754961058565,-1533.17,0.00020063,2]
[378698563,1754961058574,-2964.63,0.00020063,2]
[378698564,1754961058584,-847.73,0.00020063,2]
[378698565,1754961058592,-466.69,0.00020063,2]
[378698566,1754961058601,-151.0,0.00020063,2]
[378698567,1754961058611,-1291.63,0.00020063,2]
[378698568,1754961058621,-228.849815,0.00020063,2]
[378698569,1754961058630,-228.849815,0.00020063,2]
[378698570,1754961058639,-580.56,0.00020064,2]
[378698571,1754961058648,-460.0,0.00020064,2]
[378698572,1754961058658,-460.0,0.00020064,2]
[378698573,1754961058667,-460.0,0.00020064,2]
[378698574,1754961058676,-460.0,0.00020064,2]
[378698575,1754961058686,-1019.8,0.00020064,2]
[378698576,1754961058695,-718.56,0.00020064,2]
[378698577,1754961058704,-657.97,0.00020064,2]
[378698578,1754961058713,-460.0,0.00020064,2]
[378698579,1754961058722,-460.0,0.00020064,2]
[378698580,1754961058731,-460.0,0.00020064,2]
[378698581,1754961058740,-460.0,0.00020064,2]
[378698582,1754961058750,-460.0,0.00020064,2]
[378698583,1754961058759,-460.0,0.00020064,2]
[378698584,1754961058768,-460.0,0.00020064,2]
[378698585,1754961058777,-805.43,0.00020064,2]